bitfinex/quotes_BTCUSD_20240719
["timestamp","ask_amount","ask_price","bid_price","bid_amount"]
[1721406173694,0.02352517,66538.0,66529.0,0.07996879]
[1721406174957,0.02352517,66538.0,66537.0,0.07717479]
[1721406175160,0.01902874,66540.0,66537.0,0.07717479]
[1721406176397,0.01902874,66540.0,66534.0,0.002794]
[1721406176564,0.01902874,66540.0,66533.0,0.002794]
[1721406176928,0.01902874,66540.0,66525.0,0.226]
[1721406177131,0.01902874,66540.0,66528.0,0.07717479]
[1721406177132,0.03617975,66538.0,66528.0,0.07717479]
[1721406177326,0.03617975,66538.0,66535.0,0.07717479]
[1721406177571,0.01902874,66540.0,66535.0,0.07717479]
[1721406177572,0.01902874,66540.0,66536.0,0.002794]
[1721406179131,0.01902874,66540.0,66538.0,0.05]
[1721406179304,0.01902874,66540.0,66537.0,0.05]
[1721406179509,0.01902874,66540.0,66535.0,0.07717479]
[1721406179648,0.01902874,66540.0,66537.0,0.3047]
[1721406179882,0.01902874,66540.0,66538.0,0.1]
[1721406180101,0.01902874,66540.0,66537.0,0.3047]
[1721406180525,9e-05,66560.0,66538.0,0.1394]
[1721406180729,0.24546669,66609.0,66538.0,0.1394]
[1721406180730,0.26560003,66632.0,66546.0,0.07717479]
[1721406180938,0.07591379,66633.0,66628.0,0.07717479]
[1721406181129,0.07568846,66639.0,66628.0,0.41187311]
[1721406181345,5e-05,66640.0,66626.0,0.47224969]
[1721406181346,0.07524496,66627.0,66626.0,0.47224969]
[1721406181589,0.07524496,66627.0,66614.0,0.07717479]
[1721406181804,0.10852746,66639.0,66616.0,0.3027]
[1721406181925,0.10852746,66639.0,66629.0,0.15438174]
[1721406182125,0.09872453,66617.0,66616.0,0.3027]
[1721406182325,0.02197569,66621.0,66616.0,0.3027]
[1721406182326,0.07510915,66620.0,66616.0,0.3027]
[1721406182529,0.02197569,66621.0,66601.0,0.135]
[1721406182530,0.07576385,66604.0,66601.0,0.135]
[1721406182745,0.07576385,66604.0,66587.0,0.46304871]
[1721406182746,0.07521959,66594.0,66591.0,0.135]
[1721406182982,0.05915328,66603.0,66591.0,0.135]
[1721406182983,0.10385993,66592.0,66591.0,0.135]
[1721406183188,0.07583562,66592.0,66591.0,0.135]
[1721406183435,0.02802431,66585.0,66565.0,0.07717479]
[1721406183648,0.07717479,66602.0,66572.0,0.07717479]
[1721406183649,0.07518396,66582.0,66572.0,0.07717479]
[1721406184098,0.07531415,66579.0,66572.0,0.00771748]
[1721406184316,0.07581482,66573.0,66566.0,0.07717479]
[1721406184935,0.07557317,66578.0,66566.0,0.23155653]
[1721406185138,0.07539453,66578.0,66577.0,0.07717479]
[1721406185382,0.07556096,66585.0,66577.0,0.09991347]
[1721406185585,0.17556096,66585.0,66578.0,0.1774]
[1721406185786,0.17556096,66585.0,66578.0,0.18734306]
[1721406186131,0.02802431,66584.0,66578.0,0.18734306]
[1721406186284,0.02802431,66579.0,66578.0,0.18734306]
[1721406186486,0.10373257,66579.0,66578.0,0.18734306]
[1721406187717,0.10373257,66579.0,66578.0,0.00994306]
[1721406187926,0.10373257,66579.0,66578.0,0.014]
[1721406188181,0.10373257,66579.0,66578.0,0.028]
[1721406188371,0.10373257,66579.0,66567.0,0.1799]
[1721406188372,0.10347334,66568.0,66567.0,0.1799]
[1721406188732,0.20347334,66568.0,66567.0,0.1799]
[1721406188944,0.20347334,66568.0,66562.0,0.1398]
[1721406188945,0.02802431,66563.0,66562.0,0.1398]
[1721406189140,0.02802431,66560.0,66555.0,0.1761]
[1721406189373,0.10312765,66559.0,66556.0,0.07717479]
[1721406189751,0.07529899,66557.0,66556.0,0.07717479]
[1721406189947,0.1,66567.0,66555.0,0.1761]
[1721406189948,0.10312058,66556.0,66555.0,0.1761]
[1721406192053,0.02802431,66532.0,66531.0,0.002]
[1721406192390,0.09518903,66532.0,66526.0,0.1804]
[1721406192593,0.02802431,66527.0,66526.0,0.1804]
[1721406193196,0.02802431,66525.0,66524.0,0.009174]
[1721406193413,0.09597982,66525.0,66524.0,0.009174]
[1721406193639,0.16386524,66531.0,66524.0,0.009174]
[1721406193640,0.02802431,66529.0,66524.0,0.009174]
[1721406193842,0.02802431,66529.0,66528.0,0.07717479]
[1721406194386,0.02802431,66525.0,66524.0,0.009174]
[1721406194791,0.02802431,66525.0,66524.0,0.017174]
[1721406195599,0.09597982,66525.0,66524.0,0.009174]
[1721406195863,0.44707982,66525.0,66524.0,0.009174]
[1721406196073,0.54707982,66525.0,66524.0,0.009174]
[1721406196282,0.54707982,66525.0,66524.0,0.020174]
[1721406196283,0.62255486,66525.0,66524.0,0.020174]
[1721406196534,0.62255486,66525.0,66524.0,0.009174]
[1721406196749,0.62255486,66525.0,66516.0,0.19019965]
[1721406196750,0.02802431,66517.0,66516.0,0.15143366]
[1721406196955,0.09688378,66517.0,66516.0,0.10330366]
[1721406197165,0.09688378,66517.0,66516.0,0.01436566]
[1721406197166,0.1723965,66517.0,66516.0,0.01436566]
[1721406197559,0.1723965,66517.0,66500.0,0.03205065]
[1721406197560,0.02802431,66501.0,66500.0,0.03205065]
[1721406197769,0.09869235,66501.0,66500.0,0.03205065]
[1721406198607,0.02802431,66492.0,66483.0,0.19009381]
[1721406198829,0.09971005,66492.0,66483.0,0.02489381]
[1721406199076,0.17532502,66492.0,66483.0,0.02489381]
[1721406199290,0.02802431,66484.0,66483.0,0.02489381]
[1721406199485,0.02802431,66484.0,66483.0,0.01658448]
[1721406199486,0.1006149,66484.0,66483.0,0.01658448]
[1721406199682,0.1756149,66484.0,66483.0,0.01658448]
[1721406200301,0.1756149,66484.0,66471.0,0.002]
[1721406200473,0.102794,66483.0,66471.0,0.002]
[1721406200675,0.3511,66476.0,66471.0,0.002]
[1721406200921,0.16004866,66475.0,66471.0,0.002]
[1721406201130,0.16004866,66475.0,66457.0,0.009196]
[1721406201131,0.06021839,66472.0,66457.0,0.009196]
[1721406201303,0.3511,66458.0,66457.0,0.009196]
[1721406201508,0.4511,66458.0,66457.0,0.009196]
[1721406201739,0.58885337,66458.0,66447.0,0.47786321]
[1721406201871,0.102794,66457.0,66447.0,0.09198929]
[1721406202086,0.08685673,66456.0,66447.0,0.0148145]
[1721406202302,0.06242559,66452.0,66447.0,0.0148145]
[1721406202511,0.06242559,66452.0,66430.0,0.46304871]
[1721406202718,0.3511,66439.0,66431.0,0.46304871]
[1721406202937,0.14534816,66438.0,66431.0,0.00988616]
[1721406203141,0.3511,66439.0,66431.0,0.00988616]
[1721406203361,0.3511,66439.0,66424.0,0.009185]
[1721406203566,0.06469073,66438.0,66424.0,0.009185]
[1721406203928,0.014,66458.0,66431.0,0.07717479]
[1721406203929,0.3511,66450.0,66431.0,0.07717479]
[1721406204136,0.06389777,66449.0,66442.0,0.07717479]
[1721406204355,0.10433592,66449.0,66442.0,0.07717479]
[1721406204488,0.06389777,66449.0,66442.0,0.07717479]
[1721406204690,0.3511,66450.0,66443.0,0.1324]
[1721406204937,0.011,66452.0,66449.0,0.07717479]
[1721406205171,0.05,66488.0,66449.0,0.07717479]
[1721406205172,0.3511,66472.0,66450.0,0.20475174]
[1721406205416,0.06157651,66471.0,66463.0,0.07717479]
[1721406205674,0.1379,66486.0,66470.0,0.07717479]
[1721406205675,0.01739732,66478.0,66470.0,0.07717479]
[1721406205855,0.06010523,66477.0,66470.0,0.07717479]
[1721406206800,0.0005,66478.0,66470.0,0.07717479]
[1721406207005,0.0005,66478.0,66463.0,0.07717479]
[1721406207006,0.06010523,66477.0,66463.0,0.07717479]
[1721406207434,0.3511,66472.0,66464.0,0.07717479]
[1721406207641,0.3511,66472.0,66456.0,0.07717479]
[1721406207642,0.06078421,66471.0,66456.0,0.07717479]
[1721406207839,0.06478421,66471.0,66456.0,0.07717479]
[1721406208082,0.06478421,66471.0,66463.0,0.07717479]
[1721406208083,0.06078421,66471.0,66463.0,0.07717479]
[1721406208256,0.0005,66478.0,66470.0,0.07717479]
[1721406208458,0.07210523,66477.0,66470.0,0.07717479]
[1721406208682,0.08510523,66477.0,66470.0,0.07717479]
[1721406209082,0.004,66471.0,66470.0,0.07717479]
[1721406209541,0.07310523,66477.0,66470.0,0.07717479]
[1721406209785,0.07310523,66477.0,66470.0,0.24517479]
[1721406209786,0.017,66477.0,66470.0,0.24517479]
[1721406210064,0.017,66477.0,66473.0,0.02737]
[1721406210276,0.017,66477.0,66474.0,0.00300828]
[1721406210464,0.017,66477.0,66476.0,0.47866]
[1721406210663,0.0005,66478.0,66477.0,0.177797]
[1721406210891,0.07717479,66522.0,66477.0,0.177797]
[1721406210892,0.3511,66518.0,66492.0,0.3098]
[1721406211099,0.46304871,66500.0,66492.0,0.343517]
[1721406211272,0.46304871,66500.0,66485.0,0.02737]
[1721406211273,0.05761669,66499.0,66485.0,0.02737]
[1721406211682,0.05761669,66499.0,66482.0,0.1418]
[1721406211918,0.05761669,66499.0,66492.0,0.07717479]
[1721406212124,0.05761669,66499.0,66485.0,0.10454479]
[1721406212125,0.05761669,66499.0,66489.0,0.02737]
[1721406212291,0.05761669,66499.0,66485.0,0.10454479]
[1721406212469,0.06761669,66499.0,66485.0,0.10554479]
[1721406212692,0.06361669,66499.0,66485.0,0.001]
[1721406212892,0.3511,66495.0,66485.0,0.001]
[1721406213093,0.15829522,66494.0,66485.0,0.001]
[1721406213295,0.20315176,66492.0,66485.0,0.001]
[1721406213528,0.1,66491.0,66471.0,0.1389]
[1721406213732,0.05931323,66490.0,66471.0,0.13844785]
[1721406213955,0.1,66491.0,66472.0,0.002794]
[1721406213956,0.05936981,66486.0,66472.0,0.002794]
[1721406214130,0.05936981,66486.0,66470.0,0.1703]
[1721406214340,0.3511,66483.0,66464.0,0.07717479]
[1721406214544,0.1,66482.0,66481.0,0.07717479]
[1721406214744,0.1,66482.0,66471.0,0.07717479]
[1721406214745,0.15925667,66482.0,66471.0,0.07717479]
[1721406214993,0.05982236,66481.0,66471.0,0.07917479]
[1721406215198,0.05982236,66481.0,66472.0,0.002794]
[1721406215556,0.05982236,66481.0,66471.0,0.07717479]
[1721406215760,0.05982236,66481.0,66464.0,0.07817479]
[1721406215942,0.05982236,66481.0,66465.0,0.002794]
[1721406216144,0.109,66482.0,66449.0,0.07717479]
[1721406216145,0.3511,66472.0,66471.0,0.003]
[1721406216405,0.55261997,66472.0,66471.0,0.003]
[1721406216540,0.51148813,66472.0,66471.0,0.003]
[1721406217474,0.64498813,66472.0,66470.0,0.000924]
[1721406217680,0.16044471,66471.0,66470.0,0.000924]
[1721406218573,0.51154471,66471.0,66470.0,0.000924]
[1721406218803,0.68869918,66471.0,66470.0,0.000924]
[1721406219003,0.68869918,66471.0,66470.0,0.003924]
[1721406219004,0.51154471,66471.0,66470.0,0.003924]
[1721406219205,0.51154471,66471.0,66470.0,0.005924]
[1721406219413,0.51154471,66471.0,66470.0,0.002924]
[1721406219620,0.56269918,66471.0,66470.0,0.002924]
[1721406219841,0.86490918,66471.0,66470.0,0.002924]
[1721406220050,0.81375471,66471.0,66470.0,0.002924]
[1721406220446,0.51154471,66471.0,66470.0,0.002924]
[1721406220757,0.51154471,66471.0,66470.0,0.003924]
[1721406220758,0.16044471,66471.0,66470.0,0.003924]
[1721406220952,0.06044471,66471.0,66470.0,0.003924]
[1721406221155,0.06044471,66471.0,66470.0,0.001924]
[1721406221356,0.07444471,66471.0,66470.0,0.001924]
[1721406221564,0.42554471,66471.0,66470.0,0.002924]
[1721406221767,0.86662471,66471.0,66470.0,0.001924]
[1721406222012,0.65014471,66471.0,66470.0,0.002924]
[1721406222209,0.65014471,66471.0,66470.0,0.001924]
[1721406222210,0.73086682,66471.0,66470.0,0.001924]
[1721406222389,0.73770731,66471.0,66470.0,0.000924]
[1721406222600,0.74270731,66471.0,66470.0,0.001924]
[1721406222801,0.75670827,66471.0,66470.0,0.002924]
[1721406223164,0.69200971,66471.0,66470.0,0.002924]
[1721406223362,0.75676556,66471.0,66470.0,0.002924]
[1721406223548,0.75676556,66471.0,66450.0,0.002794]
[1721406223746,0.75676556,66471.0,66445.0,0.46304871]
[1721406223747,0.00045235,66450.0,66445.0,0.46304871]
[1721406224104,0.00045235,66450.0,66439.0,0.1343]
[1721406224307,0.0633881,66449.0,66439.0,0.1343]
[1721406224511,0.0633881,66449.0,66411.0,0.004794]
[1721406224512,0.0633881,66449.0,66433.0,0.02737]
[1721406225131,0.0633881,66449.0,66432.0,0.07717479]
[1721406225132,0.00245235,66450.0,66445.0,0.006]
[1721406225332,0.06455733,66450.0,66445.0,0.006]
[1721406225536,0.06355733,66450.0,66441.0,0.10454479]
[1721406225781,0.001,66449.0,66444.0,0.002794]
[1721406226311,0.001,66449.0,66448.0,0.07717479]
[1721406226801,0.001,66449.0,66448.0,0.08786379]
[1721406227160,0.001,66449.0,66448.0,0.010689]
[1721406227357,0.001,66449.0,66442.0,0.002794]
[1721406227558,0.001,66449.0,66448.0,0.01068377]
[1721406227878,0.00045235,66450.0,66442.0,0.002794]
[1721406228085,0.00045235,66450.0,66448.0,0.01068377]
[1721406228285,0.00045235,66450.0,66441.0,0.10554479]
[1721406228286,0.12841304,66449.0,66441.0,0.10554479]
[1721406228462,0.1,66448.0,66444.0,0.02737]
[1721406228658,0.1,66448.0,66445.0,0.02737]
[1721406228862,0.1,66448.0,66446.0,0.002794]
[1721406229276,0.06448982,66447.0,66446.0,0.002794]
[1721406230151,0.06448982,66447.0,66445.0,0.02737]
[1721406230327,0.06448982,66449.0,66446.0,0.002794]
[1721406230529,0.02062176,66450.0,66446.0,0.002794]
[1721406230530,0.06449407,66448.0,66446.0,0.002794]
[1721406230743,0.06449407,66447.0,66444.0,0.004]
[1721406230950,0.1,66462.0,66445.0,0.002794]
[1721406230951,0.06449407,66461.0,66445.0,0.002794]
[1721406231103,0.001,66448.0,66445.0,0.002794]
[1721406231308,0.18546493,66460.0,66440.0,0.1664]
[1721406231309,0.1277123,66447.0,66442.0,0.002794]
[1721406231508,0.16449407,66446.0,66440.0,0.1664]
[1721406231712,0.12810868,66445.0,66440.0,0.1664]
[1721406231913,0.16449407,66444.0,66440.0,0.1664]
[1721406232113,0.06449407,66443.0,66441.0,0.10454479]
[1721406232516,0.06449407,66443.0,66442.0,0.002794]
[1721406232738,0.06449407,66443.0,66440.0,0.1664]
[1721406232914,0.06449407,66443.0,66441.0,0.07717479]
[1721406233128,0.1,66459.0,66442.0,0.002794]
[1721406233331,0.13423634,66458.0,66443.0,0.02737]
[1721406233468,0.17147108,66457.0,66444.0,0.002794]
[1721406233680,0.13423634,66456.0,66444.0,0.002794]
[1721406233879,0.17147108,66455.0,66445.0,0.01072025]
[1721406234079,0.17012093,66454.0,66445.0,0.003]
[1721406234287,0.07147108,66453.0,66445.0,0.003]
[1721406234511,0.12746738,66452.0,66446.0,0.01070985]
[1721406234801,0.06453226,66451.0,66446.0,0.0071399]
[1721406235023,0.06299174,66450.0,66441.0,0.002794]
[1721406235279,0.09421145,66449.0,66444.0,0.001]
[1721406235547,0.20561823,66448.0,66444.0,0.001]
[1721406235813,0.20561823,66448.0,66442.0,0.00716779]
[1721406235814,0.06453226,66447.0,66442.0,0.00716779]
[1721406236050,0.06453226,66447.0,66435.0,0.10454479]
[1721406236051,0.12797699,66446.0,66435.0,0.10454479]
[1721406236327,0.16453226,66445.0,66438.0,0.02737]
[1721406236582,0.06453226,66444.0,66440.0,0.02737]
[1721406236816,0.12826013,66443.0,66441.0,0.002794]
[1721406237056,0.12826013,66443.0,66439.0,0.01078939]
[1721406237057,0.16453226,66442.0,66439.0,0.01078939]
[1721406237291,0.1,66447.0,66435.0,0.07717479]
[1721406237292,0.12843003,66441.0,66435.0,0.07717479]
[1721406237518,0.16453226,66440.0,66436.0,0.002794]
[1721406237757,0.1287132,66439.0,66435.0,0.07717479]
[1721406237981,0.16453226,66438.0,66436.0,0.030164]
[1721406238243,0.1,66438.0,66437.0,0.02737]
[1721406238493,0.16260904,66438.0,66437.0,0.02737]
[1721406239231,0.16260904,66438.0,66435.0,0.07717479]
[1721406239473,0.16260904,66438.0,66436.0,0.002794]
[1721406239474,0.16260904,66437.0,66436.0,0.002794]
[1721406239700,0.16260904,66437.0,66436.0,0.005794]
[1721406239923,0.16260904,66437.0,66436.0,0.033164]
[1721406240955,0.16260904,66437.0,66436.0,0.030164]
[1721406241159,0.16260904,66437.0,66436.0,0.02737]
[1721406241590,0.16260904,66437.0,66436.0,0.030164]
[1721406241822,0.101,66437.0,66436.0,0.180684]
[1721406242072,0.02072417,66440.0,66439.0,0.02737]
[1721406242297,0.0833023,66440.0,66439.0,0.02737]
[1721406242518,0.1347,66463.0,66450.0,0.02737]
[1721406242729,0.1347,66463.0,66451.0,0.07996879]
[1721406242730,0.1313842,66462.0,66451.0,0.07996879]
[1721406242944,0.06929827,66461.0,66451.0,0.07717479]
[1721406243135,0.13125973,66460.0,66451.0,0.07717479]
[1721406243345,0.06929827,66459.0,66451.0,0.07717479]
[1721406243531,0.13137296,66458.0,66451.0,0.07717479]
[1721406243746,0.06929827,66457.0,66448.0,0.02737]
[1721406243964,0.00045232,66451.0,66450.0,0.02737]
[1721406244297,0.06303651,66451.0,66438.0,0.002794]
[1721406244501,0.06303651,66451.0,66431.0,0.438863]
[1721406244502,0.13255651,66450.0,66434.0,0.02737]
[1721406244713,0.13255651,66450.0,66431.0,0.1378]
[1721406244714,0.001,66437.0,66436.0,0.03437]
[1721406245144,0.1,66448.0,66439.0,0.02737]
[1721406245352,0.06261036,66447.0,66446.0,0.02737]
[1721406245565,0.16261036,66447.0,66446.0,0.02737]
[1721406246391,0.16261036,66447.0,66446.0,0.66743158]
[1721406246611,0.1387,66473.0,66446.0,0.66743158]
[1721406246612,0.3511,66476.0,66468.0,0.02737]
[1721406246821,0.1387,66489.0,66470.0,0.02737]
[1721406246822,0.52577877,66475.0,66470.0,0.02737]
[1721406247116,0.05601656,66474.0,66472.0,0.02737]
[1721406247345,0.06003732,66473.0,66466.0,0.3117]
[1721406247598,0.06003732,66473.0,66463.0,0.02737]
[1721406247599,0.11605388,66473.0,66463.0,0.02737]
[1721406247808,0.06269897,66472.0,66464.0,0.02737]
[1721406248021,0.06269897,66472.0,66457.0,0.1702]
[1721406248022,0.12330211,66471.0,66457.0,0.1702]
[1721406248229,0.12330211,66471.0,66464.0,0.02737]
[1721406248230,0.06269897,66470.0,66464.0,0.02737]
[1721406248452,0.06269897,66469.0,66466.0,0.02737]
[1721406248666,0.06269897,66468.0,66467.0,0.02737]
[1721406249096,0.06269897,66468.0,66467.0,0.478721]
[1721406249097,0.05601656,66468.0,66467.0,0.478721]
[1721406249315,1.0481328,66486.0,66476.0,0.02737]
[1721406249526,0.12186187,66485.0,66476.0,0.02737]
[1721406249723,0.12186187,66485.0,66471.0,0.150441]
[1721406249724,0.06272971,66484.0,66474.0,0.02737]
[1721406249934,0.12208815,66483.0,66474.0,0.02737]
[1721406250143,0.06272971,66482.0,66474.0,0.02737]
[1721406250375,0.12225654,66481.0,66468.0,0.02737]
[1721406250597,0.12225654,66481.0,66470.0,0.02737]
[1721406250598,0.16278496,66480.0,66470.0,0.02737]
[1721406250803,0.12259596,66479.0,66472.0,0.02737]
[1721406251007,0.16278496,66478.0,66472.0,0.02737]
[1721406251212,0.1,66485.0,66474.0,0.02737]
[1721406251213,0.06278496,66477.0,66474.0,0.02737]
[1721406251462,0.1,66485.0,66468.0,0.300894]
[1721406251463,0.014,66485.0,66483.0,0.02737]
[1721406251676,0.014,66485.0,66476.0,0.001]
[1721406251677,0.014,66485.0,66484.0,0.02737]
[1721406251888,0.014,66485.0,66476.0,0.001]
[1721406251889,0.0816386,66485.0,66480.0,0.02655979]
[1721406252103,0.0816386,66485.0,66479.0,0.1747]
[1721406252104,0.12160107,66484.0,66476.0,0.002]
[1721406252319,0.0626386,66483.0,66476.0,0.02755979]
[1721406252527,0.005,66477.0,66476.0,0.001]
[1721406252735,0.005,66477.0,66470.0,0.02655979]
[1721406252736,0.12727989,66477.0,66470.0,0.02655979]
[1721406252933,0.12727989,66477.0,66463.0,0.1747]
[1721406252934,0.12261934,66476.0,66463.0,0.1747]
[1721406253142,0.0626386,66475.0,66472.0,0.001]
[1721406253352,0.0626386,66475.0,66463.0,0.20125979]
[1721406253353,0.06670899,66474.0,66463.0,0.20125979]
[1721406253563,0.1,66475.0,66466.0,0.02655979]
[1721406253768,0.73298876,66487.0,66466.0,0.02655979]
[1721406253769,0.07051552,66501.0,66500.0,93.18885716]
[1721406254030,0.15149957,66506.0,66500.0,93.18885716]
[1721406254031,0.7755,66506.0,66500.0,93.5179389]
[1721406254208,0.00838,66539.0,66500.0,93.5179389]
[1721406254209,0.03017067,66543.0,66542.0,0.450843]
[1721406254424,0.060247,66551.0,66550.0,1.010112]
[1721406254636,0.07553049,66560.0,66556.0,0.500747]
[1721406254842,0.07553049,66560.0,66559.0,0.751212]
[1721406255052,0.07598939,66568.0,66567.0,0.450673]
[1721406255298,0.07598939,66568.0,66566.0,0.1468]
[1721406255504,0.07598939,66568.0,66567.0,0.07717479]
[1721406255709,0.07598939,66568.0,66562.0,0.05]
[1721406255933,0.07598939,66568.0,66566.0,0.12717479]
[1721406256139,0.07598939,66568.0,66567.0,0.200224]
[1721406256362,0.07598939,66568.0,66567.0,0.05]
[1721406256568,0.07598939,66568.0,66567.0,0.95550374]
[1721406256774,0.07598939,66568.0,66567.0,0.65505474]
[1721406256979,0.08398939,66568.0,66567.0,0.65505474]
[1721406257207,0.07598939,66568.0,66567.0,0.65505474]
[1721406257411,0.07504739,66588.0,66566.0,0.07717479]
[1721406257619,0.07509481,66586.0,66578.0,0.07717479]
[1721406258049,0.0754791,66588.0,66578.0,0.07717479]
[1721406258959,0.0754791,66588.0,66567.0,0.008]
[1721406259210,0.0754791,66588.0,66573.0,0.07717479]
[1721406259870,0.0894791,66588.0,66580.0,0.12717479]
[1721406260075,0.0894791,66588.0,66580.0,0.07717479]
[1721406260076,0.0754791,66588.0,66580.0,0.07717479]
[1721406260293,0.0754791,66588.0,66525.0,0.07717479]
[1721406260294,0.07717479,66581.0,66525.0,0.07717479]
[1721406260506,0.07717479,66581.0,66505.0,0.07717479]
[1721406260507,0.2,66516.0,66485.0,0.08588668]
[1721406260722,0.13054924,66489.0,66465.0,0.00025012]
[1721406260930,0.75,66501.0,66465.0,0.00025012]
[1721406260931,0.3511,66474.0,66465.0,0.00025012]
[1721406261141,0.13054924,66473.0,66465.0,0.00025012]
[1721406261348,0.13054924,66473.0,66472.0,0.3141711]
[1721406261349,0.23054924,66473.0,66472.0,0.3141711]
[1721406261554,0.23054924,66473.0,66459.0,0.1349]
[1721406261767,0.002794,66472.0,66459.0,0.1349]
[1721406261971,0.3511,66463.0,66459.0,0.1349]
[1721406262175,0.3511,66463.0,66456.0,0.3181]
[1721406262176,0.1,66462.0,66456.0,0.3181]
[1721406262388,0.23054924,66462.0,66461.0,0.150464]
[1721406262590,0.23054924,66462.0,66456.0,0.3181]
[1721406262794,0.13054924,66461.0,66456.0,0.3181]
[1721406263241,0.1,66460.0,66451.0,0.002]
[1721406263439,0.13054924,66459.0,66451.0,0.002]
[1721406264090,0.13054924,66459.0,66457.0,0.150471]
[1721406264336,0.13054924,66459.0,66458.0,0.15047]
[1721406264544,0.13054924,66459.0,66458.0,0.82952679]
[1721406264751,0.002794,66489.0,66459.0,0.319]
[1721406264976,0.002794,66500.0,66493.0,0.150389]
[1721406265179,0.002794,66500.0,66476.0,0.07717479]
[1721406265180,0.46304871,66505.0,66487.0,0.150403]
[1721406265386,0.1815,66506.0,66492.0,0.07717479]
[1721406265387,0.002794,66504.0,66492.0,0.07717479]
[1721406265587,0.3511,66507.0,66489.0,0.1458]
[1721406265791,0.3511,66507.0,66492.0,0.150393]
[1721406265995,0.3511,66507.0,66489.0,0.446599]
[1721406266201,0.3511,66507.0,66491.0,0.150396]
[1721406266585,0.014,66505.0,66490.0,0.300796]
[1721406266833,0.014,66505.0,66491.0,0.150395]
[1721406267305,0.014,66505.0,66478.0,0.30085]
[1721406267306,0.3511,66495.0,66476.0,0.1458]
[1721406267574,0.3511,66495.0,66491.0,0.001]
[1721406267575,0.1768,66494.0,66491.0,0.001]
[1721406267783,0.002794,66493.0,66491.0,0.001]
[1721406268472,0.002794,66504.0,66491.0,0.001]
[1721406268680,0.07717479,66499.0,66491.0,0.001]
[1721406268880,0.07717479,66499.0,66478.0,0.150425]
[1721406269054,0.07717479,66499.0,66466.0,0.300904]
[1721406269055,0.07717479,66491.0,66466.0,0.300904]
[1721406269313,0.002794,66490.0,66462.0,0.76396771]
[1721406269554,0.07717479,66483.0,66462.0,0.46304871]
[1721406269835,0.002794,66482.0,66462.0,0.46304871]
[1721406270289,0.002794,66482.0,66464.0,0.296256]
[1721406270498,0.07717479,66476.0,66464.0,0.1458]
[1721406270751,0.002794,66475.0,66464.0,0.1458]
[1721406270964,0.1,66482.0,66466.0,0.300902]
[1721406270965,0.002794,66481.0,66466.0,0.300902]
[1721406271166,0.1,66482.0,66464.0,0.1468]
[1721406271167,0.1,66482.0,66470.0,0.150443]
[1721406271382,0.1,66482.0,66467.0,0.15438174]
[1721406271383,0.1,66482.0,66472.0,0.150437]
[1721406271582,0.1,66482.0,66464.0,0.1468]
[1721406271693,0.026,66483.0,66465.0,0.15438174]
[1721406271694,0.002794,66481.0,66465.0,0.15438174]
[1721406271899,0.002794,66482.0,66465.0,0.15438174]
[1721406272103,0.07717479,66481.0,66464.0,0.1458]
[1721406272313,0.003,66476.0,66464.0,0.1458]
[1721406272522,0.002794,66475.0,66464.0,0.1458]
[1721406272725,0.002794,66475.0,66451.0,0.002]
[1721406272726,0.07717479,66474.0,66455.0,0.1436]
[1721406272929,0.002794,66473.0,66455.0,0.1436]
[1721406273215,0.002794,66473.0,66465.0,0.001]
[1721406273847,0.1,66479.0,66451.0,0.002]
[1721406273848,0.002794,66478.0,66451.0,0.002]
[1721406274053,0.002794,66478.0,66453.0,0.46304871]
[1721406274256,0.002794,66478.0,66454.0,0.150479]
[1721406274477,0.0290394,66478.0,66453.0,0.150481]
[1721406274682,0.002794,66477.0,66451.0,0.300973]
[1721406274811,0.002794,66477.0,66452.0,0.15438174]
[1721406275011,0.002794,66477.0,66455.0,0.150475]
[1721406275216,0.014,66478.0,66464.0,0.07717479]
[1721406275416,0.1746,66490.0,66471.0,0.07717479]
[1721406275777,0.07717479,66489.0,66457.0,0.07717479]
[1721406275905,0.002794,66489.0,66463.0,0.150459]
[1721406276105,0.002794,66489.0,66462.0,0.15046]
[1721406276300,0.014,66478.0,66454.0,0.001]
[1721406276496,0.002794,66477.0,66454.0,0.001]
[1721406276719,0.002794,66477.0,66455.0,0.300953]
[1721406276947,0.014,66478.0,66449.0,0.457767]
[1721406277210,0.01219088,66477.0,66463.0,0.001]
[1721406277412,0.1451,66474.0,66463.0,0.001]
[1721406277606,0.102794,66473.0,66449.0,0.156787]
[1721406277812,0.102794,66473.0,66455.0,0.001]
[1721406278032,0.07717479,66468.0,66455.0,0.001]
[1721406278271,0.002794,66467.0,66455.0,0.001]
[1721406278694,0.002794,66472.0,66455.0,0.001]
[1721406279107,0.002794,66472.0,66454.0,0.300957]
[1721406279310,0.114,66473.0,66451.0,0.07717479]
[1721406279311,0.014,66473.0,66469.0,0.300889]
[1721406279521,0.014,66473.0,66468.0,0.300894]
[1721406279720,0.014,66473.0,66463.0,0.001]
[1721406279921,0.014,66473.0,66458.0,0.07717479]
[1721406279922,0.014,66473.0,66458.0,0.150469]
[1721406280139,0.002794,66482.0,66455.0,0.300952]
[1721406280473,0.002794,66482.0,66454.0,0.001]
[1721406280474,0.012,66468.0,66454.0,0.001]
[1721406280649,0.185894,66465.0,66454.0,0.001]
[1721406280846,0.002794,66463.0,66443.0,0.150504]
[1721406281078,0.002794,66463.0,66458.0,0.001]
[1721406282420,0.149594,66463.0,66458.0,0.001]
[1721406282645,0.002794,66461.0,66458.0,0.001]
[1721406283055,0.002794,66461.0,66455.0,0.000924]
[1721406283507,0.07717479,66456.0,66455.0,0.000924]
[1721406283919,0.002794,66459.0,66455.0,0.000924]
[1721406284324,0.002794,66459.0,66455.0,0.002924]
[1721406284734,0.1831,66465.0,66455.0,0.002924]
[1721406284735,0.014,66456.0,66455.0,0.002924]
[1721406284940,0.014,66456.0,66455.0,0.000924]
[1721406285112,0.014,66456.0,66455.0,0.001924]
[1721406285561,0.014,66456.0,66455.0,0.91170195]
[1721406285808,0.014,66456.0,66455.0,0.60773774]
[1721406285983,0.014,66456.0,66455.0,0.90869274]
[1721406286546,0.014,66456.0,66455.0,0.60773774]
[1721406286758,0.014,66459.0,66458.0,0.15047]